bitfinex/quotes_SOLUSD_20220307
["timestamp","ask_amount","ask_price","bid_price","bid_amount"]
[1646696793050,2.83613526,82.056,81.981,58.18352354]
[1646696793250,6.25,82.055,81.982,0.25]
[1646696793451,0.25,82.055,81.982,0.25]
[1646696793651,6.096,82.054,81.982,0.25]
[1646696793850,6.0,82.056,82.0,18.2939]
[1646696794050,6.096,82.073,82.001,0.25]
[1646696794252,6.0,82.072,82.001,0.25]
[1646696794953,62.98312077,82.071,82.001,0.25]
[1646696795151,0.25,82.07,82.02,18.2889]
[1646696795354,6.094,82.069,82.021,0.25]
[1646696795552,0.25,82.068,82.021,0.25]
[1646696795751,0.25,82.069,82.021,0.25]
[1646696798457,6.25,82.069,82.03,18.2903]
[1646696801464,6.28,82.069,82.03,18.2903]
[1646696801664,6.0,82.069,82.031,0.25]
[1646696802067,0.03,82.07,82.04,18.2884]
[1646696802263,0.03,82.07,82.041,0.25]
[1646696802663,0.03,82.07,82.041,54.64587106]
[1646696802864,0.03,82.07,82.041,0.25]
[1646696803266,0.03,82.07,82.05,18.2863]
[1646696811175,0.03,82.07,82.04,18.2889]
[1646696811576,0.03,82.07,82.041,48.82494994]
[1646696811775,0.03,82.089,82.04,18.2889]
[1646696814796,6.091,82.088,82.04,18.2889]
[1646696815094,0.25,82.087,82.04,18.2889]
[1646696815397,121.4,82.085,81.99,22.7146]
[1646696815594,123.08327565,82.079,81.99,22.7146]
[1646696815795,121.4,82.077,81.99,22.7146]
[1646696815994,121.4,82.075,81.99,22.7146]
[1646696816198,0.25,82.074,81.981,23.86]
[1646696816394,121.4,82.059,81.981,23.86]
[1646696816595,121.4,82.057,81.981,23.86]
[1646696816796,121.4,82.055,81.981,23.86]
[1646696816994,121.4,82.053,81.982,0.25]
[1646696817198,14.43,82.05,81.982,0.25]
[1646696817395,6.096,82.049,82.0,18.2978]
[1646696817594,121.4,82.048,82.0,18.2978]
[1646696817795,0.25,82.047,82.0,18.2978]
[1646696817995,6.096,82.049,82.0,18.2978]
[1646696818395,6.0,82.052,82.0,18.2978]
[1646696818596,6.345,82.051,82.0,18.2978]
[1646696818996,6.345,82.051,82.001,51.96492664]
[1646696819296,6.345,82.051,82.001,0.25]
[1646696819896,0.25,82.051,82.001,0.25]
[1646696820500,0.25,82.051,82.01,18.2955]
[1646696820699,6.345,82.069,82.01,18.2955]
[1646696821201,48.50135443,82.068,82.011,59.82855946]
[1646696821400,6.344,82.067,82.01,18.2955]
[1646696821802,0.03,82.049,82.01,18.2955]
[1646696822401,5.78,82.049,82.001,0.25]
[1646696822606,0.68585553,82.048,82.001,0.25]
[1646696822803,0.25,82.048,82.001,0.25]
[1646696823100,0.25,82.048,81.995,0.25]
[1646696823101,7.63,82.048,81.995,0.25]
[1646696823301,7.63,82.048,81.982,23.1823]
[1646696823501,7.63,82.048,81.99,18.3001]
[1646696823700,6.096,82.047,81.99,18.3001]
[1646696823906,0.25,82.046,81.99,18.3001]
[1646696824103,6.096,82.045,81.99,18.3001]
[1646696824304,168.46365809,82.044,81.97,60.9957]
[1646696824502,121.4,82.042,81.97,60.9957]
[1646696824702,47.06365809,82.044,81.97,60.9957]
[1646696824703,135.83,82.04,81.97,60.9957]
[1646696824903,6.347,82.039,81.98,18.3023]
[1646696825106,121.4,82.038,81.951,24.0618]
[1646696825308,121.4,82.036,81.951,24.0618]
[1646696825506,121.4,82.034,81.951,24.0618]
[1646696825705,121.4,82.029,81.951,24.0618]
[1646696825907,121.4,82.027,81.96,18.3064]
[1646696826106,194.23,82.023,81.93,108.9753]
[1646696826306,14.43,82.01,81.93,184.9192]
[1646696826510,121.4,82.009,81.907,22.9122119]
[1646696826708,72.83,82.004,81.925,112.2]
[1646696826906,46.81365809,82.008,81.908,48.86107451]
[1646696826907,121.4,81.999,81.908,48.86107451]
[1646696827107,72.83,81.99,81.9,18.317]
[1646696827308,194.23,81.979,81.88,61.0565]
[1646696827508,1.63602973,81.957,81.852,47.8838]
[1646696827706,1.63602973,81.945,81.853,60.93]
[1646696827911,1.63602973,81.936,81.852,47.8838]
[1646696828107,0.25,81.935,81.854,51.62479751]
[1646696828708,0.25,81.935,81.87,18.3233]
[1646696828907,2.83613526,81.967,81.855,6.87997853]
[1646696828908,1.63602973,81.954,81.871,6.25]
[1646696829111,1.63602973,81.965,81.871,6.87997853]
[1646696829306,0.25,81.964,81.895,100.0]
[1646696829506,0.25,81.964,81.896,0.25]
[1646696829706,1.63602973,81.97,81.896,0.25]
[1646696829707,6.102,81.969,81.9,18.3164]
[1646696829908,1.63602973,81.974,81.901,0.25]
[1646696830108,1.63602973,81.99,81.901,6.25]
[1646696830306,1.63602973,81.999,81.902,0.98838397]
[1646696830505,6.101,81.998,81.902,6.62997853]
[1646696830706,6.101,82.004,81.903,61.8853609]
[1646696830908,1.63602973,82.007,81.935,100.0]
[1646696831109,6.349,82.006,81.936,64.87815906]
[1646696831307,6.0,82.005,81.936,64.87815906]
[1646696831509,14.43,82.0,81.936,64.87815906]
[1646696831711,6.349,81.999,81.936,64.87815906]
[1646696832512,6.349,81.999,81.936,64.62815906]
[1646696832709,1.63602973,81.998,81.91,18.3139]
[1646696832910,1.63602973,81.987,81.91,18.3139]
[1646696833112,121.4,81.979,81.885,100.0]
[1646696833310,1.63602973,81.97,81.863,6.0]
[1646696833511,6.353,81.969,81.863,6.0]
[1646696833717,123.03602973,81.967,81.864,48.43536567]
[1646696833912,1.63602973,81.96,81.87,61.0613]
[1646696834113,14.43,81.95,81.864,48.43536567]
[1646696834315,37.31929515,81.948,81.864,48.43536567]
[1646696834611,6.354,81.947,81.864,48.43536567]
[1646696834811,0.25,81.947,81.864,48.43536567]
[1646696835012,6.104,81.946,81.864,48.43536567]
[1646696835216,0.25,81.945,81.87,18.3235]
[1646696835412,6.104,81.944,81.87,18.3235]
[1646696835612,0.25,81.943,81.87,18.3235]
[1646696835811,6.104,81.942,81.856,45.9452]
[1646696836014,14.43,81.94,81.856,45.9452]
[1646696836219,6.355,81.939,81.856,45.9452]
[1646696836415,121.4,81.938,81.83,61.0916]
[1646696836615,1.63602973,81.937,81.83,61.0916]
[1646696836927,121.4,81.933,81.831,46.0663088]
[1646696837119,14.43,81.92,81.831,46.0663088]
[1646696837313,121.4,81.917,81.831,46.0663088]
[1646696837513,121.4,81.915,81.831,46.0663088]
[1646696837714,121.4,81.913,81.831,46.0663088]
[1646696837918,6.107,81.912,81.831,46.69628733]
[1646696838115,6.107,81.917,81.831,46.69628733]
[1646696838315,121.4,81.916,81.831,46.69628733]
[1646696838517,6.106,81.915,81.831,45.5663088]
[1646696838717,6.107,81.917,81.832,6.0]
[1646696838918,6.107,81.917,81.84,18.3305]
[1646696839120,37.31929515,81.918,81.84,18.3305]
[1646696839321,1.63602973,81.939,81.841,6.0]
[1646696839527,61.1579,81.94,81.842,0.25]
[1646696839718,6.105,81.939,81.847,100.0]
[1646696839952,1.63602973,81.952,81.86,18.3258]
[1646696840121,6.104,81.951,81.862,121.4]
[1646696840322,1.63602973,81.956,81.864,121.4]
[1646696840522,1.63602973,81.963,81.87,61.0565]
[1646696840720,6.104,81.965,81.87,61.0565]
[1646696840721,6.103,81.962,81.871,6.25]
[1646696840923,1.63602973,81.964,81.873,0.33078681]
[1646696841122,1.63602973,81.967,81.875,0.34822597]
[1646696841321,1.63602973,81.968,81.877,0.3507374]
[1646696841522,1.63602973,81.965,81.88,18.317]
[1646696841720,0.03,81.952,81.89,61.0474]
[1646696841923,0.03,81.952,81.892,0.3507374]
[1646696842126,25.9423663,81.986,81.892,0.3507374]
[1646696842127,1.63602973,81.968,81.893,121.4]
[1646696842324,1.63602973,81.978,81.895,121.7507374]
[1646696842522,1.63602973,81.978,81.897,121.7507374]
[1646696842723,1.63602973,81.977,81.899,121.7507374]
[1646696842931,1.63602973,81.977,81.92,18.31]
[1646696843126,1.63602973,81.978,81.921,0.25]
[1646696843424,1.63602973,81.979,81.921,0.25]
[1646696843625,1.63602973,81.981,81.911,0.3507374]
[1646696843823,1.63602973,81.976,81.911,0.25]
[1646696844027,1.63602973,81.967,81.91,61.0331]
[1646696844225,1.63602973,81.964,81.91,61.0331]
[1646696844431,0.25,81.963,81.91,61.0331]
[1646696844630,1.63602973,81.961,81.91,61.0331]
[1646696844825,0.25,81.96,81.895,100.0]
[1646696845027,1.63602973,81.959,81.9,18.3163]
[1646696845227,1.63602973,81.951,81.9,18.3163]
[1646696845425,0.25,81.95,81.9,18.3163]
[1646696845832,1.63602973,81.943,81.88,100.0]
[1646696846026,1.63602973,81.931,81.88,100.0]
[1646696846231,1.63602973,81.919,81.88,100.0]
[1646696846431,1.63602973,81.918,81.88,100.0]
[1646696846630,23.21365145,81.875,81.81,14.43]
[1646696846831,23.21365145,81.875,81.81,61.1091]
[1646696847033,23.21365145,81.875,81.811,58.66699289]
[1646696847233,23.21365145,81.875,81.83,18.3328]
[1646696847234,0.25,81.874,81.83,18.3328]
[1646696847449,0.25,81.874,81.822,100.0]
[1646696847450,9.85613526,81.874,81.822,100.0]
[1646696847647,121.4,81.873,81.822,100.0]
[1646696847849,0.25,81.872,81.822,100.0]
[1646696848047,14.43,81.87,81.822,100.0]
[1646696848247,72.83,81.868,81.79,18.3428]
[1646696848448,194.23,81.863,81.79,18.3428]
[1646696848648,121.4,81.861,81.79,18.3428]
[1646696848847,121.4,81.859,81.79,18.3428]
[1646696849047,6.11,81.858,81.79,18.3428]
[1646696849250,14.43,81.86,81.791,6.0]
[1646696849448,0.25,81.859,81.81,18.336]
[1646696849648,0.25,81.859,81.811,60.87596021]
[1646696850553,0.25,81.874,81.811,60.87596021]
[1646696850750,1.63602973,81.882,81.82,18.3359]
[1646696850950,1.63602973,81.884,81.82,18.3359]
[1646696851356,1.63602973,81.873,81.82,18.3359]
[1646696851951,1.63602973,81.873,81.83,18.3316]
[1646696852156,1.63602973,81.88,81.831,62.94711583]
[1646696852551,1.63602973,81.888,81.832,0.25]
[1646696852751,1.63602973,81.889,81.832,0.25]
[1646696852954,1.63602973,81.891,81.832,0.87997853]
[1646696853156,1.63602973,81.883,81.832,0.25]
[1646696853352,1.63602973,81.879,81.832,0.25]
[1646696853752,1.63602973,81.878,81.84,18.3294]
[1646696853953,1.63602973,81.879,81.84,18.3294]
[1646696854153,1.63602973,81.874,81.84,18.3294]
[1646696854555,1.63602973,81.873,81.84,18.3294]
[1646696854753,1.63602973,81.874,81.84,18.3294]
[1646696854958,1.63602973,81.871,81.84,18.3294]
[1646696855355,1.63602973,81.874,81.84,18.3294]
[1646696855557,1.63602973,81.872,81.84,18.3294]
[1646696855959,1.63602973,81.864,81.84,18.3294]
[1646696856357,1.63602973,81.865,81.84,18.3294]
[1646696856559,1.63602973,81.866,81.84,18.3294]
[1646696856858,1.63602973,81.867,81.84,18.3294]
[1646696857060,1.63602973,81.869,81.84,18.3294]
[1646696857258,1.63602973,81.87,81.84,18.3294]
[1646696857560,1.63602973,81.869,81.84,18.3294]
[1646696857957,1.63602973,81.868,81.84,18.3294]
[1646696858158,1.63602973,81.869,81.853,53.93602768]
[1646696858358,1.63602973,81.873,81.853,53.93602768]
[1646696858757,1.63602973,81.872,81.853,53.93602768]
[1646696858957,1.63602973,81.873,81.853,53.93602768]
[1646696859157,1.63602973,81.872,81.853,53.93602768]
[1646696859357,1.63602973,81.87,81.853,53.93602768]
[1646696859960,23.17398393,81.875,81.853,53.93602768]
[1646696860169,3.27205946,81.909,81.86,18.328]
[1646696860361,3.27205946,81.909,81.861,0.25]
[1646696860565,6.63211353,81.916,81.861,0.25]
[1646696860758,6.63211353,81.908,81.854,0.25]
[1646696860958,9.37805946,81.913,81.854,0.25]
[1646696861160,6.88211353,81.912,81.854,0.25]
[1646696861360,55.43371496,81.911,81.854,0.25]
[1646696861659,3.27205946,81.906,81.854,0.25]
[1646696861860,3.27205946,81.905,81.854,0.25]
[1646696862259,6.0,81.91,81.86,18.3282]
[1646696862260,6.63211353,81.904,81.86,18.3282]
[1646696862459,0.25,81.903,81.86,18.3282]
[1646696862763,6.88211353,81.903,81.86,18.3282]
[1646696862961,6.63211353,81.902,81.86,18.3282]
[1646696863159,3.52205946,81.901,81.86,18.3282]
[1646696863361,6.63211353,81.9,81.86,18.3282]
[1646696865163,0.25,81.899,81.85,18.3306]
[1646696865463,6.63211353,81.898,81.85,18.3306]
[1646696865865,2.27163826,81.897,81.85,82.08806792]
[1646696866263,2.27163826,81.897,81.85,18.3306]
[1646696866564,6.63304611,81.896,81.85,18.3306]
[1646696866764,124.67205946,81.893,81.811,22.7721]
[1646696866963,121.4,81.889,81.81,61.1125]
[1646696867167,72.83,81.878,81.785,100.0]
[1646696867370,121.4,81.868,81.785,100.0]
[1646696867564,72.83,81.863,81.752,18.0473]
[1646696867764,121.4,81.854,81.78,18.3464]
[1646696867968,121.4,81.849,81.78,18.3464]
[1646696868165,121.4,81.847,81.78,18.3464]
[1646696868365,121.4,81.845,81.78,18.3464]
[1646696868765,0.25,81.844,81.78,18.3464]
[1646696869466,121.4,81.839,81.78,18.3464]
[1646696869667,121.4,81.837,81.78,18.3464]
[1646696869867,0.25,81.836,81.78,18.3464]
[1646696870971,6.111,81.835,81.78,18.3464]
[1646696871172,0.25,81.834,81.78,18.3464]
[1646696871370,6.111,81.833,81.78,18.3464]
[1646696871571,0.25,81.832,81.78,18.3464]
[1646696871973,6.112,81.839,81.78,18.3464]
[1646696872175,3.27205946,81.86,81.78,18.3464]
[1646696872373,12.36,81.859,81.78,18.3464]
[1646696872571,6.25,81.859,81.78,118.3464]
[1646696872774,12.111,81.858,81.78,118.3464]
[1646696872971,0.25,81.857,81.781,50.93140698]
[1646696873175,0.25,81.857,81.801,61.9895631]
[1646696873373,0.25,81.857,81.8,18.3386]
[1646696873573,6.11,81.856,81.8,18.3386]
[1646696873772,0.25,81.855,81.8,18.3386]
[1646696873975,6.11,81.854,81.8,18.3386]
[1646696874173,0.25,81.853,81.8,18.3386]
[1646696874574,14.43,81.85,81.8,18.3386]
[1646696874774,6.36,81.849,81.8,18.3386]
[1646696874975,121.4,81.848,81.79,18.3445]
[1646696875175,6.361,81.847,81.77,61.1432]
[1646696875375,5.15107982,81.845,81.77,61.1432]
[1646696875577,14.43,81.84,81.77,61.1432]
[1646696875779,0.25,81.839,81.77,61.1432]
[1646696876078,6.25,81.839,81.77,61.1432]
[1646696876880,0.25,81.839,81.78,18.3467]
[1646696877080,2.83613526,81.854,81.78,18.3467]
[1646696877380,6.0,81.853,81.78,18.3467]
[1646696877782,6.0,81.853,81.781,0.25]
[1646696877980,47.82637235,81.865,81.801,47.4783132]
[1646696878180,12.11,81.864,81.801,47.4783132]
[1646696878781,6.11,81.864,81.801,47.4783132]
[1646696878983,6.11,81.885,81.81,139.738]
[1646696879181,12.107,81.889,81.811,0.25]
[1646696879380,6.107,81.909,81.813,0.23471469]
[1646696879580,6.107,81.91,81.814,121.4]
[1646696879781,14.43,81.92,81.818,121.4]
[1646696879985,3.27205946,81.921,81.831,121.4]
[1646696880180,6.106,81.92,81.833,121.7008871]
[1646696880382,6.106,81.928,81.835,0.3008871]
[1646696880581,121.4,81.933,81.835,0.3008871]
[1646696880781,25.9423663,81.927,81.835,50.37426344]
[1646696880984,121.4,81.926,81.836,0.87997853]
[1646696881202,25.9423663,81.927,81.836,0.87997853]
[1646696881203,121.4,81.924,81.851,58.77264859]
[1646696881402,14.43,81.92,81.851,58.77264859]
[1646696881604,2.93745576,81.918,81.851,58.77264859]
[1646696881806,121.4,81.916,81.851,58.77264859]
[1646696882001,6.106,81.915,81.851,58.77264859]
[1646696882203,0.25,81.914,81.86,18.3288]
[1646696882402,6.105,81.913,81.86,18.3288]
[1646696882605,0.25,81.912,81.86,18.3288]
[1646696882902,0.25,81.916,81.86,18.3288]
[1646696883607,6.105,81.915,81.86,18.3288]
[1646696883804,0.25,81.914,81.86,18.3288]
[1646696884805,6.355,81.916,81.86,18.3288]
[1646696885010,121.4,81.915,81.86,18.3288]
[1646696885309,0.25,81.914,81.86,18.3288]
[1646696885533,14.43,81.91,81.821,6.105]
[1646696885708,121.4,81.905,81.804,6.107]
[1646696885916,72.83,81.896,81.792,0.62997853]
[1646696886111,194.23,81.889,81.804,6.107]
[1646696886307,121.4,81.887,81.805,59.22663221]
[1646696886508,121.4,81.885,81.805,59.22663221]
[1646696886707,0.25,81.884,81.806,6.109]
[1646696886910,14.43,81.88,81.806,6.109]
[1646696887107,0.25,81.879,81.81,18.3401]
[1646696887308,6.109,81.878,81.81,18.3401]
[1646696887508,121.65,81.877,81.81,18.3401]
[1646696887708,5.62197255,81.874,81.81,18.3401]
[1646696887909,127.759,81.873,81.81,18.3401]
[1646696888311,14.43,81.87,81.81,18.3401]
[1646696888510,72.83,81.864,81.8,18.3429]
[1646696888714,14.43,81.85,81.797,100.0]
[1646696888909,121.4,81.849,81.797,100.0]
[1646696889112,121.4,81.847,81.797,100.0]
[1646696889310,121.4,81.845,81.761,52.53290987]
[1646696889511,194.23,81.843,81.764,6.112]
[1646696889713,121.4,81.839,81.77,18.3484]
[1646696889914,14.43,81.84,81.77,18.3484]
[1646696890513,14.43,81.84,81.771,6.112]
[1646696890711,14.43,81.84,81.781,61.77552964]
[1646696890913,121.4,81.839,81.781,61.77552964]
[1646696891110,121.4,81.837,81.781,61.77552964]
[1646696891315,121.4,81.835,81.78,18.3444]
[1646696891512,121.4,81.833,81.78,18.3444]
[1646696891711,6.111,81.832,81.78,18.3444]
[1646696892013,121.4,81.838,81.78,18.3444]
[1646696892213,12.111,81.837,81.78,18.3444]
[1646696892511,14.94713526,81.837,81.79,18.3427]
[1646696892712,6.0,81.837,81.79,18.3427]
[1646696892913,2.83613526,81.858,81.79,18.3427]
[1646696893211,6.0,81.857,81.79,18.3427]
[1646696893411,6.11,81.856,81.79,18.3427]
[1646696893816,0.25,81.855,81.79,18.3427]
[1646696894013,6.11,81.854,81.79,18.3427]
[1646696894214,14.43,81.85,81.79,18.3427]
[1646696894414,6.36,81.849,81.79,18.3427]
[1646696894816,0.25,81.849,81.79,18.3427]
[1646696895214,0.25,81.849,81.8,18.3408]
[1646696895817,121.4,81.847,81.781,59.20721441]
[1646696896017,6.361,81.846,81.781,59.20721441]
[1646696896216,9.19713526,81.846,81.781,59.20721441]
[1646696896420,6.361,81.846,81.79,18.344]
[1646696896618,14.43,81.85,81.791,6.111]
[1646696896916,14.43,81.85,81.782,6.11]
[1646696897117,14.43,81.85,81.783,0.25]
[1646696897316,6.0,81.849,81.784,6.111]
[1646696897517,6.0,81.849,81.785,0.25]
[1646696897717,6.0,81.849,81.786,6.111]
[1646696897916,2.83613526,81.865,81.786,6.111]
[1646696898118,14.43,81.86,81.8,18.341]
[1646696898517,40.79616459,81.859,81.801,61.93530456]
[1646696898922,0.25,81.858,81.801,61.93530456]
[1646696899518,0.25,81.859,81.81,18.3397]
[1646696900320,38.09038266,81.859,81.81,18.3397]
[1646696900820,14.43,81.86,81.81,18.3397]
[1646696901024,2.83613526,81.882,81.81,26.3697]
[1646696901220,45.9662,81.885,81.811,0.25]
[1646696901423,6.107,81.884,81.83,18.3343]
[1646696901620,6.107,81.884,81.83,24.3143]
[1646696901820,45.9662,81.885,81.831,55.49927074]
[1646696902320,2.83613526,81.896,81.831,55.49927074]
[1646696902321,6.107,81.895,81.831,55.49927074]
[1646696902725,0.25,81.894,81.84,18.333]
[1646696902923,6.107,81.893,81.84,18.333]
[1646696903122,0.25,81.892,81.84,18.333]
[1646696903324,39.56467456,81.893,81.84,18.333]
[1646696903523,6.357,81.892,81.84,18.333]
[1646696903723,6.0,81.891,81.84,18.333]
[1646696903926,0.25,81.89,81.84,18.333]
[1646696904127,6.25,81.892,81.84,18.333]
[1646696906225,2.83613526,81.891,81.84,18.333]
[1646696906427,0.25,81.89,81.84,18.333]
[1646696906824,8.94313526,81.889,81.82,61.1085]
[1646696907029,0.25,81.888,81.83,18.3353]
[1646696907228,6.107,81.887,81.831,48.40249898]
[1646696907425,6.25,81.886,81.831,48.40249898]
[1646696908826,6.25,81.886,81.84,18.3336]
[1646696909029,0.25,81.886,81.84,18.3336]
[1646696909228,6.25,81.898,81.84,18.3336]
[1646696910028,36.82162575,81.897,81.84,18.3336]
[1646696910230,0.25,81.896,81.84,18.3336]
[1646696910430,6.107,81.895,81.84,18.3336]
[1646696910630,0.25,81.894,81.84,18.3336]
[1646696911031,0.25,81.894,81.83,18.3355]
[1646696911234,72.83,81.887,81.803,6.107]
[1646696911431,121.4,81.884,81.801,6.109]
[1646696911633,14.43,81.88,81.8,61.1217]
[1646696911832,6.359,81.879,81.8,61.1217]
[1646696912034,14.25161394,81.878,81.801,81.45303625]
[1646696912231,6.359,81.877,81.81,18.3388]
[1646696912431,0.25,81.877,81.811,6.109]
[1646696912631,0.25,81.877,81.803,6.109]
[1646696912831,0.25,81.877,81.804,0.25]
[1646696913033,0.25,81.877,81.805,6.109]
[1646696913233,6.25,81.877,81.806,0.25]
[1646696913434,9.08613526,81.877,81.807,6.109]
[1646696914236,9.08613526,81.877,81.82,18.3369]
[1646696914434,9.08613526,81.877,81.82,24.1469]
[1646696914636,2.83613526,81.877,81.82,24.1469]
[1646696914835,2.83613526,81.898,81.821,149.20230758]
[1646696915058,2.83613526,81.898,81.821,27.55230758]
[1646696915257,38.04745996,81.895,81.831,52.37016822]
[1646696915660,6.107,81.894,81.831,52.37016822]
[1646696916258,6.107,81.894,81.82,61.1003]
[1646696916460,2.83613526,81.893,81.821,6.107]
[1646696916658,6.107,81.892,81.82,61.1003]
[1646696916861,121.4,81.891,81.802,48.4693]
[1646696917058,121.4,81.889,81.802,48.4693]
[1646696917259,20.537,81.89,81.802,48.4693]
[1646696917260,6.109,81.888,81.803,83.39958804]
[1646696917459,121.4,81.888,81.803,83.39958804]
[1646696917659,121.4,81.886,81.804,21.46856104]
[1646696917860,121.4,81.884,81.804,21.46856104]
[1646696918059,121.4,81.881,81.804,21.46856104]
[1646696918259,12.359,81.88,81.804,21.46856104]
[1646696918659,2.83613526,81.879,81.804,21.46856104]
[1646696918862,6.359,81.878,81.804,21.46856104]
[1646696919365,2.83613526,81.877,81.82,18.3383]
[1646696919563,6.357,81.876,81.82,18.3383]
[1646696919963,9.19313526,81.876,81.82,18.3383]
[1646696920562,121.4,81.875,81.82,18.3383]
[1646696920766,194.23,81.873,81.81,18.3404]
[1646696920964,14.43,81.87,81.81,18.3404]
[1646696921163,6.109,81.869,81.81,18.3404]
[1646696921364,38.04745996,81.868,81.81,18.3404]
[1646696921566,121.4,81.866,81.81,18.3404]
[1646696921763,121.4,81.866,81.774,49.4244]
[1646696921764,121.4,81.864,81.8,18.3428]
[1646696921967,121.4,81.862,81.8,18.3428]
[1646696922170,135.83,81.86,81.8,18.3428]
[1646696922367,72.83,81.857,81.781,6.11]
[1646696922664,121.4,81.85,81.782,21.53863097]
[1646696922865,14.43,81.85,81.782,21.53863097]
[1646696923164,14.43,81.85,81.78,50.74687564]
[1646696923563,14.43,81.85,81.781,21.53863097]
[1646696924165,14.43,81.85,81.79,18.3453]
[1646696925170,14.43,81.85,81.791,21.54001317]
[1646696925469,0.25,81.849,81.791,21.54001317]
[1646696926670,42.12444602,81.849,81.791,21.54001317]
[1646696926873,2.83613526,81.848,81.791,21.54001317]
[1646696927074,121.4,81.846,81.79,18.3453]
[1646696927273,121.4,81.844,81.79,18.3453]
[1646696927471,6.111,81.843,81.79,18.3453]
[1646696927673,0.25,81.842,81.79,18.3453]
[1646696927872,6.111,81.841,81.79,18.3453]
[1646696928074,0.25,81.84,81.79,18.3453]
[1646696928273,6.111,81.839,81.79,18.3453]
[1646696928474,0.25,81.838,81.78,18.347]
[1646696928675,6.111,81.837,81.78,18.347]
[1646696928974,0.25,81.836,81.781,21.56501816]
[1646696929175,0.25,81.838,81.781,21.56501816]
[1646696929776,0.25,81.838,81.79,18.3427]
[1646696929975,0.25,81.853,81.79,18.3427]
[1646696930174,0.25,81.854,81.79,18.3427]
[1646696930374,6.11,81.853,81.79,18.3427]
[1646696930574,0.25,81.852,81.79,18.3427]
[1646696930776,0.25,81.852,81.791,21.54810232]
[1646696930976,0.25,81.852,81.8,18.342]
[1646696931476,0.25,81.852,81.801,59.08209448]
[1646696931677,0.25,81.855,81.801,59.08209448]
[1646696932177,6.11,81.856,81.81,18.341]
[1646696932375,6.11,81.859,81.81,24.451]
[1646696932575,23.95907679,81.882,81.81,24.451]
[1646696932576,6.109,81.874,81.81,24.451]
[1646696932777,6.25,81.873,81.811,21.51972524]
[1646696932977,6.109,81.872,81.811,21.51972524]
[1646696933275,6.25,81.871,81.802,21.51972524]
[1646696933574,6.109,81.87,81.821,64.68163782]
[1646696933775,0.25,81.869,81.821,64.68163782]
[1646696934074,6.109,81.868,81.821,64.68163782]
[1646696934276,0.25,81.867,81.821,64.68163782]
[1646696934475,6.109,81.866,81.821,64.68163782]
[1646696934778,0.25,81.865,81.821,64.68163782]
[1646696935080,6.109,81.864,81.821,64.68163782]
[1646696935275,0.25,81.863,81.821,64.68163782]
[1646696935878,0.25,81.863,81.82,18.3365]
[1646696936278,6.109,81.862,81.82,18.3365]
[1646696936478,0.25,81.861,81.82,18.3365]
[1646696936879,0.25,81.861,81.821,49.35145553]
[1646696937680,0.25,81.873,81.821,49.35145553]
[1646696937881,6.107,81.872,81.821,49.35145553]
[1646696938081,0.25,81.871,81.821,49.35145553]
[1646696938281,0.25,81.873,81.821,49.35145553]
[1646696939083,6.107,81.872,81.821,49.35145553]